bitfinex/quotes_ETHUSD_20241120
["timestamp","ask_amount","ask_price","bid_price","bid_amount"]
[1732139955775,0.7645,3078.8,3078.5,0.10141097]
[1732139955925,0.7645,3078.8,3078.4,3.24841]
[1732139956269,0.7645,3078.8,3078.5,0.10141093]
[1732139956566,0.7645,3078.8,3078.4,3.24841]
[1732139956720,0.7645,3078.8,3078.5,0.10141109]
[1732139957020,1.165748,3078.8,3078.4,3.24841]
[1732139957223,1.165748,3078.8,3078.5,0.1014112]
[1732139957422,1.165748,3078.8,3078.4,3.24841]
[1732139957665,1.165748,3078.8,3078.5,0.10141092]
[1732139957955,1.165748,3078.8,3078.4,3.24841]
[1732139958162,0.7645,3078.8,3078.4,3.24841]
[1732139958381,0.7645,3078.8,3078.5,0.1014115]
[1732139958524,3.2483,3078.6,3078.1,0.8068]
[1732139958726,4.61370429,3079.1,3078.2,0.10141414]
[1732139958727,1.15753,3078.5,3078.2,0.10141414]
[1732139959066,1.15753,3078.5,3078.1,3.24874]
[1732139959067,0.8327,3078.5,3078.1,3.24874]
[1732139960455,0.8327,3078.5,3078.0,3.24879]
[1732139960769,0.8327,3078.5,3078.1,3.24875]
[1732139961365,3.24823,3078.6,3077.9,4.07324]
[1732139961366,3.24825,3078.6,3077.9,0.8243]
[1732139961676,4.56881,3078.7,3078.1,3.24874]
[1732139961971,0.456881,3078.6,3078.1,3.24874]
[1732139962497,3.705141,3078.6,3078.1,3.24874]
[1732139962950,0.456881,3078.6,3078.1,3.24874]
[1732139963150,0.456881,3078.6,3078.2,3.24862]
[1732139963349,3.24842,3078.5,3077.9,0.8243]
[1732139963603,3.24822,3078.6,3077.9,0.8243]
[1732139963745,3.24836,3078.5,3078.0,3.24884]
[1732139963949,3.705242,3078.5,3078.0,3.24884]
[1732139964562,3.24849,3078.4,3077.9,4.07321]
[1732139964977,3.24849,3078.4,3077.9,7.32211]
[1732139965148,1.3206,3078.7,3078.2,3.24864]
[1732139965462,4.56878,3078.7,3078.2,3.24864]
[1732139966189,4.56873,3078.7,3078.2,3.24857]
[1732139966552,3.24823,3078.6,3078.2,3.24857]
[1732139966991,4.56874,3078.7,3078.2,3.24857]
[1732139967147,2.102279,3078.7,3078.1,3.24873]
[1732139967352,3.24824,3078.6,3078.1,3.24873]
[1732139967851,3.24861,3078.3,3077.9,0.8243]
[1732139968074,3.24861,3078.3,3077.7,3.24911]
[1732139968075,3.24872,3078.2,3077.7,0.7964]
[1732139968277,3.2488,3078.1,3077.7,0.7964]
[1732139968861,0.791,3078.3,3077.7,0.7964]
[1732139969073,3.65262,3078.2,3077.7,0.7964]
[1732139971176,3.65262,3078.2,3077.8,0.1014322]
[1732139971377,3.65262,3078.2,3077.9,0.10143203]
[1732139971580,3.65262,3078.2,3077.7,0.7964]
[1732139971774,3.65262,3078.2,3077.8,0.10143176]
[1732139971982,3.65262,3078.2,3077.9,0.10143176]
[1732139972283,3.65262,3078.2,3077.7,0.7964]
[1732139972604,3.65262,3078.2,3077.8,0.10143196]
[1732139972787,3.65262,3078.2,3077.9,0.10143196]
[1732139972991,3.24867,3078.2,3077.7,0.7964]
[1732139973310,3.24867,3078.2,3077.8,0.10143207]
[1732139973508,3.24867,3078.2,3077.9,0.10143207]
[1732139973681,3.24867,3078.2,3077.7,0.7964]
[1732139973878,3.24867,3078.2,3077.8,0.10143158]
[1732139974118,3.24867,3078.2,3077.9,0.10143158]
[1732139974415,3.24867,3078.2,3077.7,0.7964]
[1732139974567,3.24867,3078.2,3077.8,0.10143194]
[1732139974766,3.977486,3078.2,3077.9,0.10143194]
[1732139975114,3.977486,3078.2,3077.7,0.7964]
[1732139975272,3.977486,3078.2,3077.8,0.10143241]
[1732139975466,3.977486,3078.2,3077.9,0.10143241]
[1732139975674,3.24867,3078.2,3077.7,4.04552]
[1732139975873,0.791,3078.3,3077.9,3.24896]
[1732139976094,0.791,3078.3,3078.0,0.10143023]
[1732139976287,0.55,3078.3,3077.9,3.24896]
[1732139976475,0.55,3078.3,3078.0,0.10143058]
[1732139976685,0.55,3078.3,3077.9,3.24896]
[1732139976889,3.79855,3078.3,3078.0,0.10143047]
[1732139977308,3.79855,3078.3,3077.8,3.24902]
[1732139977617,0.55,3078.4,3078.1,0.8023]
[1732139978112,3.79844,3078.4,3078.1,0.8023]
[1732139978869,3.24856,3078.3,3077.8,0.8023]
[1732139979085,3.24856,3078.3,3077.9,0.10142688]
[1732139979410,0.55,3078.4,3078.0,0.10142688]
[1732139979578,3.79848,3078.4,3077.9,3.24892]
[1732139979911,3.79844,3078.4,3078.0,0.1014278]
[1732139980118,3.79844,3078.4,3078.1,0.1014278]
[1732139980299,0.55,3078.4,3078.2,0.10142147]
[1732139980502,0.55,3078.4,3077.9,3.24888]
[1732139980674,3.79845,3078.4,3078.0,0.10142275]
[1732139980878,3.79845,3078.4,3078.1,0.10142275]
[1732139981118,3.79845,3078.4,3078.0,0.10142275]
[1732139981324,3.79845,3078.4,3078.1,0.10142275]
[1732139981823,3.79845,3078.4,3078.2,0.10142275]
[1732139982001,3.24854,3078.3,3077.8,0.8023]
[1732139982191,3.24866,3078.2,3077.9,0.10142652]
[1732139982377,3.24875,3078.1,3078.0,0.10142652]
[1732139982583,3.24875,3078.1,3077.9,0.10142652]
[1732139982882,3.24875,3078.1,3078.0,0.10142652]
[1732139983076,3.24875,3078.1,3077.9,0.10142652]
[1732139983292,3.24875,3078.1,3078.0,0.10142652]
[1732139983720,3.24866,3078.2,3078.0,0.10142652]
[1732139983929,3.24854,3078.3,3077.8,4.05135]
[1732139984237,3.24854,3078.3,3077.9,0.10142873]
[1732139984391,3.24854,3078.3,3078.0,0.10142873]
[1732139984727,4.030571,3078.3,3078.1,0.10142873]
[1732139984936,4.030571,3078.3,3077.8,4.05135]
[1732139985091,4.030571,3078.3,3077.9,0.10142833]
[1732139985290,4.030571,3078.3,3078.0,0.10142833]
[1732139985602,4.030571,3078.3,3078.1,0.10142833]
[1732139985802,4.030571,3078.3,3077.8,4.05135]
[1732139986003,4.030571,3078.3,3077.9,0.10142821]
[1732139986224,4.030571,3078.3,3078.0,0.10142821]
[1732139986225,3.2487,3078.2,3078.0,0.10142821]
[1732139986438,4.0316271,3078.2,3078.1,0.10142821]
[1732139986725,3.2487,3078.2,3078.1,0.10142821]
[1732139987112,3.2487,3078.2,3077.9,0.10142821]
[1732139987433,3.2487,3078.2,3078.0,0.10142821]
[1732139987747,3.2487,3078.2,3078.1,0.10142821]
[1732139988437,3.953414,3078.2,3078.1,0.10142821]
[1732139991315,3.2487,3078.2,3078.1,0.10142821]
[1732139991842,3.2491,3077.8,3077.5,0.7935]
[1732139992040,6.49785,3078.0,3077.6,0.10143638]
[1732139992240,6.49785,3078.0,3077.7,0.10143638]
[1732139992241,3.249,3077.9,3077.7,0.10143638]
[1732139992431,3.249,3077.9,3077.5,0.7935]
[1732139992432,3.249,3077.9,3077.8,0.10143638]
[1732139992818,3.977405,3078.0,3077.8,0.10143638]
[1732139993005,0.3977405,3077.9,3077.5,0.7935]
[1732139993202,3.2489,3078.0,3077.6,0.10143822]
[1732139993431,3.2489,3078.0,3077.7,0.10143822]
[1732139993605,3.2489,3078.0,3077.8,0.10143822]
[1732139993816,3.2489,3078.0,3077.5,4.04287]
[1732139994048,3.24901,3077.9,3077.6,0.10143697]
[1732139994233,3.24901,3077.9,3077.7,0.10143697]
[1732139994424,3.24901,3077.9,3077.8,0.10143697]
[1732139994802,3.24901,3077.9,3077.8,0.10143832]
[1732139995073,4.448801,3077.9,3077.8,0.10143832]
[1732139995250,4.448801,3077.9,3077.5,0.7935]
[1732139995411,3.24918,3077.7,3077.5,0.7935]
[1732139995608,3.2491,3077.8,3077.6,0.10143971]
[1732139995845,3.2491,3077.8,3077.7,0.10143971]
[1732139997752,6.49781,3078.0,3077.7,0.10143971]
[1732139997935,6.49781,3078.0,3077.8,0.10143971]
[1732139998121,3.24888,3078.0,3077.5,4.04283]
[1732139998325,3.24897,3077.9,3077.6,0.10143703]
[1732139998646,3.24897,3077.9,3077.7,0.10143703]
[1732139998869,3.24897,3077.9,3077.8,0.10143703]
[1732139999746,3.24882,3078.1,3077.8,0.10143703]
[1732139999946,3.652411,3078.1,3077.5,4.04283]
[1732140000146,3.24887,3078.0,3077.6,0.10143622]
[1732140000366,3.24906,3077.9,3077.7,0.10143622]
[1732140000568,3.24906,3077.9,3077.8,0.10143622]
[1732140002283,3.24906,3077.9,3077.6,0.10143622]
[1732140002439,3.24906,3077.9,3077.7,0.10143622]
[1732140002638,3.24906,3077.9,3077.8,0.10143622]
[1732140002839,3.24906,3077.9,3077.6,0.10143779]
[1732140003148,3.24907,3077.8,3077.7,0.10143779]
[1732140003348,1.190791,3078.2,3077.7,0.10143779]
[1732140003539,3.24892,3078.0,3077.8,0.10143779]
[1732140003741,3.24892,3078.0,3077.5,0.7935]
[1732140003966,3.24892,3078.0,3077.6,0.10143729]
[1732140004164,3.24892,3078.0,3077.5,4.04288]
[1732140004481,3.24892,3078.0,3077.6,0.1014383]
[1732140004652,3.24892,3078.0,3077.7,0.1014383]
[1732140004852,3.24892,3078.0,3077.8,0.1014383]
[1732140005186,3.24892,3078.0,3077.5,4.04288]
[1732140005338,3.24892,3078.0,3077.6,0.10143874]
[1732140005677,4.439501,3078.2,3077.7,0.10143874]
[1732140005879,3.24859,3078.3,3077.8,2.22883303]
[1732140006077,3.2485,3078.4,3077.9,0.10143874]
[1732140006303,3.2485,3078.4,3078.0,0.10143874]
[1732140006596,4.06956,3078.8,3078.1,4.16250765]
[1732140006795,4.06956,3078.8,3078.3,3.24847]
[1732140006938,3.24797,3078.9,3078.4,4.06078]
[1732140007133,3.24785,3079.0,3078.4,4.06078]
[1732140007134,3.24807,3078.8,3078.4,0.8124]
[1732140007353,3.24807,3078.8,3078.5,0.10141505]
[1732140007546,3.24807,3078.8,3078.4,0.8124]
[1732140007852,6.902635,3079.0,3078.5,0.10141483]
[1732140008037,3.2478,3079.0,3078.4,0.8124]
[1732140008238,3.2478,3079.0,3078.5,3.34971893]
[1732140008432,3.2478,3079.0,3078.6,0.10140893]
[1732140008674,3.2478,3079.0,3078.7,0.10140583]
[1732140008836,3.2478,3079.0,3078.5,3.24831]
[1732140009045,6.4953,3079.2,3078.6,0.10140644]
[1732140009234,0.55,3079.1,3078.6,3.24821]
[1732140009439,0.8322,3079.5,3078.8,2.19059429]
[1732140009669,3.24729,3079.5,3079.0,3.24779]
[1732140010338,0.730214,3079.5,3079.0,3.24779]
[1732140010544,0.730214,3079.5,3078.9,3.24791]
[1732140010852,3.24691,3079.9,3079.3,3.24747]
[1732140011071,3.24713,3079.7,3079.2,0.8031]
[1732140011365,3.647971,3079.8,3079.2,4.05067]
[1732140011688,0.7626,3080.0,3079.4,3.24733]
[1732140011993,3.24691,3079.9,3079.3,3.24739]
[1732140012287,3.647837,3079.9,3079.4,3.24735]
[1732140013206,3.24696,3079.8,3079.2,4.05063]
[1732140013406,3.24745,3079.4,3079.0,0.8018]
[1732140013694,3.2475,3079.3,3079.0,0.8018]
[1732140014211,3.2475,3079.3,3078.7,0.8018]
[1732140014506,0.324733,3079.4,3078.7,0.8018]
[1732140014507,3.24765,3079.2,3078.7,0.8018]
[1732140014708,3.24765,3079.2,3078.5,4.05013]
[1732140014897,3.24782,3079.0,3078.5,4.05013]
[1732140015265,3.24782,3079.0,3078.5,0.8018]
[1732140015456,3.24791,3078.9,3078.5,0.8018]
[1732140016545,3.24803,3078.8,3078.5,0.8018]
[1732140016892,4.06776,3079.0,3078.5,0.8018]
[1732140018103,0.55,3079.1,3078.6,3.24817]
[1732140018312,3.79771,3079.1,3078.6,3.24817]
[1732140018596,4.577526,3079.1,3078.6,3.24817]
[1732140018963,7.825296,3079.1,3078.6,3.24817]
[1732140019592,4.577526,3079.1,3078.6,3.24817]
[1732140020580,0.779816,3079.1,3078.7,3.24804]
[1732140020779,3.2477,3079.1,3078.5,0.8018]
[1732140020966,3.24786,3079.0,3078.5,0.8018]
[1732140021312,3.24786,3079.0,3078.5,4.05009]
[1732140021997,3.572646,3079.0,3078.5,4.05009]
[1732140022786,0.324786,3079.0,3078.5,0.8018]
[1732140023071,3.79764,3079.2,3078.6,3.24816]
[1732140023507,3.79764,3079.2,3078.6,6.49632]
[1732140023726,3.24755,3079.3,3078.8,6.49596]
[1732140023874,3.24755,3079.3,3078.9,0.7695]
[1732140024570,7.3014,3079.7,3079.0,3.2477]
[1732140024898,0.77424437,3079.7,3079.3,3.24743]
[1732140025071,3.24692,3079.9,3079.4,0.7695]
[1732140025271,6.49387,3079.9,3079.4,0.7695]
[1732140025499,0.649387,3079.8,3079.4,0.7695]
[1732140025704,3.896347,3079.8,3079.4,0.7695]
[1732140026025,3.24696,3079.8,3079.4,0.7695]
[1732140028548,0.55,3079.9,3079.4,4.01685]
[1732140029310,3.79685,3079.9,3079.4,4.01685]
[1732140029511,0.704363,3079.8,3079.4,4.01685]
[1732140030574,3.951383,3079.8,3079.4,0.7695]
[1732140033584,3.24678,3080.0,3079.5,3.24719]
[1732140033914,5.41914838,3080.1,3079.4,4.01684]
[1732140034122,3.24685,3079.9,3079.4,4.01684]
[1732140034985,0.54191484,3080.0,3079.5,3.24726]
[1732140036395,3.24675,3080.0,3079.5,3.24726]
[1732140036598,5.41914838,3080.1,3079.5,3.24726]
[1732140037343,6.24649,3080.3,3079.8,4.03719]
[1732140037344,3.24644,3080.3,3079.8,4.03719]
[1732140037844,0.55,3080.4,3080.0,3.24672]
[1732140038053,0.55,3080.4,3079.9,3.24676]
[1732140038512,0.55,3080.4,3080.0,3.24673]
[1732140039298,0.55,3080.4,3079.8,0.7903]
[1732140039504,3.2465,3080.3,3079.8,0.7903]
[1732140039699,3.24675,3080.0,3079.5,4.04099]
[1732140039936,4.00424,3080.2,3079.7,3.24704]
[1732140040443,3.79664,3080.1,3079.7,3.24704]
[1732140040602,0.55,3080.2,3079.7,3.24704]
[1732140040940,0.55,3080.1,3079.7,3.24704]
[1732140042219,3.79671,3080.1,3079.6,3.2471]
[1732140043153,0.55,3080.1,3079.7,3.24697]
[1732140043437,0.55,3080.1,3079.6,3.24708]
[1732140044167,3.24665,3080.1,3079.6,3.24708]
[1732140045622,3.24676,3080.0,3079.5,4.04107]
[1732140045924,3.24665,3080.1,3079.6,3.34852165]
[1732140046124,3.24665,3080.1,3079.6,3.24715]
[1732140047464,3.24686,3079.9,3079.5,0.7938]
[1732140047721,3.24686,3079.9,3079.6,0.10137169]
[1732140047883,7.197702,3080.1,3079.5,4.04107]
[1732140048055,6.49339,3080.1,3079.6,0.10137249]
[1732140048234,3.950989,3080.1,3079.5,4.04107]
[1732140048435,3.24675,3080.0,3079.6,0.10137242]
[1732140048673,3.24733,3079.5,3079.2,0.8222]
[1732140048874,3.24741,3079.4,3079.3,0.10137834]
[1732140049386,3.24728,3079.5,3079.0,4.06994]
[1732140049557,3.24728,3079.5,3079.1,0.10138919]
[1732140049763,3.24728,3079.5,3079.2,0.10138919]
[1732140049998,1.3583,3079.9,3079.1,0.03247642]
[1732140050294,3.24702,3079.8,3079.2,3.34895592]
[1732140050438,0.460532,3079.8,3079.3,0.10138592]
[1732140050643,3.24696,3079.8,3079.4,0.10138592]
[1732140050844,3.24696,3079.8,3079.3,3.24748]
[1732140051081,3.24696,3079.8,3079.4,0.10137756]
[1732140051257,3.24696,3079.8,3079.5,0.10137756]
[1732140051480,3.24696,3079.8,3079.3,3.24748]
[1732140051680,3.24696,3079.8,3079.4,0.10137875]
[1732140051897,3.24696,3079.8,3079.3,3.24748]
[1732140052053,3.24696,3079.8,3079.4,0.10138032]
[1732140052248,3.24696,3079.8,3079.5,0.10138032]
[1732140052496,3.24696,3079.8,3079.3,3.24748]
[1732140052794,3.24696,3079.8,3079.4,0.10138157]
[1732140052996,0.55,3080.1,3079.6,3.24711]
[1732140053176,3.7967,3080.1,3079.7,0.10137716]
[1732140053362,2.95760619,3080.5,3079.7,3.24696]
[1732140053363,3.79645,3080.3,3079.7,3.24696]
[1732140053567,0.55,3080.3,3079.9,0.8002]
[1732140053975,3.79646,3080.3,3079.9,0.8002]
[1732140055169,0.8143,3080.0,3079.6,3.24714]
[1732140055370,1.8576343,3080.3,3079.7,0.7808]
[1732140055371,4.67363246,3080.3,3079.7,0.7808]
[1732140055563,4.67363246,3080.3,3079.8,0.1013721]
[1732140055564,3.2466,3080.2,3079.8,0.1013721]
[1732140055771,3.2466,3080.2,3079.7,0.7808]
[1732140056066,3.2466,3080.2,3079.8,0.10137111]
[1732140056287,3.2466,3080.2,3079.7,4.02781]
[1732140056459,6.49321,3080.2,3079.8,0.10136922]
[1732140056785,3.2466,3080.2,3079.9,0.10136922]
[1732140056985,3.2466,3080.2,3079.7,0.7808]
[1732140057167,3.24665,3080.1,3079.8,0.10136817]
[1732140057379,3.24664,3080.1,3079.7,0.7808]
[1732140057559,3.24664,3080.1,3079.8,0.10136941]
[1732140057900,4.0295369,3080.1,3079.9,0.10136916]
[1732140058199,4.0295369,3080.1,3079.7,0.7808]
[1732140058354,3.24664,3080.1,3079.7,0.7808]
[1732140058553,3.24664,3080.1,3079.8,0.10136896]
[1732140058802,3.24664,3080.1,3079.7,0.7808]
[1732140059017,0.55,3080.3,3079.8,0.10137088]
[1732140059217,0.43048184,3080.6,3079.1,2.95760619]
[1732140059218,3.24596,3080.8,3079.9,0.86717088]
[1732140059512,0.7573,3080.9,3080.2,3.24648]
[1732140059513,3.24602,3080.7,3080.2,3.24648]
[1732140059717,3.970933,3080.7,3080.3,0.10137088]
[1732140059884,3.970933,3080.7,3080.2,3.24648]
[1732140060091,0.724913,3080.7,3080.3,3.34773334]
[1732140060293,3.24591,3080.8,3080.4,0.90225334]
[1732140060487,3.24565,3081.1,3080.6,3.2461]
[1732140060692,3.570218,3081.1,3080.4,4.04719]
[1732140060891,3.24569,3081.0,3080.5,0.10134323]
[1732140061174,3.2458,3080.9,3080.6,0.10134467]
[1732140061494,0.4394418,3081.0,3080.6,3.24608]
[1732140061691,3.24549,3081.2,3080.7,3.24601]
[1732140062374,3.24549,3081.2,3080.5,3.24612]
[1732140062613,3.24549,3081.2,3080.6,3.24612]
[1732140062614,3.24548,3081.2,3080.6,3.24612]
[1732140063030,3.24566,3081.1,3080.5,3.24621]
[1732140063198,0.55,3081.1,3080.6,0.10134154]
[1732140063370,3.24577,3081.0,3080.4,0.8009]
[1732140063575,3.24577,3081.0,3080.5,0.10134336]
[1732140063809,3.24577,3081.0,3080.4,4.04716]
[1732140064013,3.24577,3081.0,3080.5,3.34756463]
[1732140064218,3.24577,3081.0,3080.5,3.24622]
[1732140064387,3.24582,3080.9,3080.4,0.8009]
[1732140064598,3.24598,3080.8,3080.1,3.24659]
[1732140064924,3.24619,3080.6,3080.2,0.1013492]
[1732140065125,3.24619,3080.6,3080.1,4.00579]
[1732140065433,3.652578,3080.7,3080.2,0.10135451]
[1732140065434,3.24601,3080.7,3080.2,0.10135451]
[1732140065594,3.24621,3080.6,3080.1,4.00579]
[1732140065797,3.24621,3080.6,3080.2,0.10135256]
[1732140066124,3.24601,3080.7,3080.2,3.24652]
[1732140066331,3.79592,3080.8,3080.3,3.34772158]
[1732140066533,3.79592,3080.8,3080.3,3.24637]
[1732140066684,4.582068,3080.8,3080.3,3.24637]
[1732140067327,4.582068,3080.8,3080.1,4.00578]
[1732140067328,3.24603,3080.7,3080.1,4.00576]
[1732140067622,3.24603,3080.7,3080.2,3.34783252]
[1732140067796,3.24603,3080.7,3080.3,0.10135252]
[1732140067994,3.24603,3080.7,3080.2,3.24648]
[1732140068207,1.336148,3080.8,3080.3,0.10135121]
[1732140068410,3.79593,3080.8,3080.2,3.24654]
[1732140068595,3.79593,3080.8,3080.3,0.10134994]
[1732140068802,3.79593,3080.8,3080.2,3.24654]
[1732140069002,4.582079,3080.8,3080.3,0.1013508]
[1732140069210,4.582079,3080.8,3080.2,3.24654]
[1732140069427,4.582079,3080.8,3080.3,0.10135211]
[1732140069630,1.336149,3080.8,3080.1,0.7592]
[1732140069801,0.55,3080.8,3080.2,0.10135381]
[1732140070004,0.55,3080.8,3080.2,3.24653]
[1732140070005,3.24607,3080.7,3080.2,3.24653]
[1732140070686,3.24622,3080.6,3080.1,0.7592]
[1732140070908,3.24622,3080.6,3080.2,0.10135538]
[1732140071112,3.24628,3080.5,3080.1,0.7592]
[1732140071797,3.24633,3080.4,3080.1,0.7592]
[1732140072183,3.24628,3080.5,3080.1,0.7592]
[1732140073027,0.55,3080.6,3080.1,4.00579]
[1732140073232,3.24607,3080.7,3080.2,3.34787523]
[1732140073386,0.55,3080.8,3080.3,0.10135151]
[1732140073584,3.79597,3080.8,3080.2,3.24652]
[1732140073835,3.79597,3080.8,3080.3,3.34776052]
[1732140074123,3.79597,3080.8,3080.3,3.24641]
[1732140075331,3.24623,3080.5,3080.1,0.7592]
[1732140075531,3.24639,3080.4,3080.1,0.7592]
[1732140075839,3.571029,3080.4,3080.1,0.7592]
[1732140076331,1.76663284,3080.8,3080.1,0.7592]
[1732140076332,3.2462,3080.6,3080.1,0.7592]
[1732140076634,3.2462,3080.6,3080.2,0.10135583]
[1732140076832,3.2462,3080.6,3080.1,4.00574]
[1732140077032,3.2462,3080.6,3080.2,0.10135497]
[1732140077325,3.2462,3080.6,3080.1,4.00574]
[1732140077530,0.55,3080.6,3080.2,3.24648]
[1732140078212,3.79586,3080.9,3080.4,3.24631]
[1732140078555,3.79586,3080.9,3080.5,0.8149]
[1732140078850,4.255806,3080.9,3080.5,0.8149]
[1732140079528,4.255806,3080.9,3080.5,4.06111]
[1732140079725,0.43048184,3081.2,3080.6,3.24606]
[1732140079924,0.43048184,3081.2,3080.5,0.8149]
[1732140079925,3.24534,3081.4,3080.8,3.24585]
[1732140080128,3.650284,3081.3,3080.8,3.24585]
[1732140082666,3.650284,3081.3,3080.6,3.24611]
[1732140082958,0.404894,3081.3,3080.8,3.2459]
[1732140083126,3.650284,3081.3,3080.8,3.2459]
[1732140083325,3.650284,3081.3,3080.7,3.24601]
[1732140083712,3.24539,3081.3,3080.7,3.24594]
[1732140084219,6.49084,3081.3,3080.7,3.24594]
[1732140084434,3.24539,3081.3,3080.7,3.24594]
[1732140084847,3.24539,3081.3,3080.6,3.24611]
[1732140085150,3.24539,3081.3,3080.8,3.24588]
[1732140085858,3.79528,3081.4,3080.9,3.24578]
[1732140086066,4.200163,3081.4,3080.9,4.04518]
[1732140086210,3.24539,3081.3,3080.9,0.7994]
[1732140086661,4.60962445,3081.3,3080.9,0.7994]
[1732140086873,1.36423445,3081.3,3080.9,0.7994]
[1732140087164,3.24597,3080.8,3080.3,4.04583]
[1732140087322,3.24597,3080.8,3080.4,0.10134197]
[1732140087522,3.24597,3080.8,3080.5,0.10134197]
[1732140087870,3.24597,3080.8,3080.6,0.10134197]
[1732140088065,3.24581,3080.9,3080.7,0.10134197]
[1732140088234,3.24581,3080.9,3080.4,3.24632]
[1732140088424,3.24581,3080.9,3080.5,0.10134261]
[1732140088620,0.7695,3081.0,3080.6,0.10134261]
[1732140088929,3.24538,3081.3,3080.7,4.15628261]
[1732140089136,3.24554,3081.2,3080.8,0.10134261]
[1732140089331,3.24554,3081.2,3080.7,4.05494]
[1732140089664,3.24554,3081.2,3080.8,0.10133927]
[1732140089862,3.24554,3081.2,3080.7,4.05494]
[1732140090166,3.24554,3081.2,3080.8,0.10133915]
[1732140090462,3.24554,3081.2,3080.7,4.05494]
[1732140090669,3.24554,3081.2,3080.8,0.10133842]
[1732140090822,3.24554,3081.2,3080.7,4.05494]
[1732140091018,3.24554,3081.2,3080.8,0.10133847]
[1732140091217,3.24554,3081.2,3080.7,4.05494]
[1732140091417,3.24554,3081.2,3080.8,0.10133846]
[1732140091656,3.24554,3081.2,3080.7,4.05494]
[1732140091838,3.24554,3081.2,3080.8,0.10133835]
[1732140092045,3.24554,3081.2,3080.8,3.2459]
[1732140092551,3.24554,3081.2,3080.7,4.05494]
[1732140092865,3.24554,3081.2,3080.8,0.10133668]
[1732140093030,3.24554,3081.2,3080.7,4.05494]
[1732140093370,3.24554,3081.2,3080.8,0.10133824]
[1732140093525,3.24554,3081.2,3080.7,7.3009]
[1732140093864,3.24554,3081.2,3080.8,3.34723967]
[1732140094361,7.0407,3081.4,3080.8,3.2459]
[1732140094732,7.0407,3081.4,3080.9,3.34707602]
[1732140094733,3.79533,3081.4,3080.9,3.34707602]
[1732140094919,0.8107,3081.5,3080.7,0.809]
[1732140095281,3.24513,3081.6,3080.9,3.24575]
[1732140095421,3.24527,3081.5,3081.0,0.1013335]
[1732140095768,3.97037,3081.5,3081.1,0.1013335]
[1732140095932,3.24527,3081.5,3080.9,3.24575]
[1732140096137,3.24527,3081.5,3081.0,0.10132842]
[1732140096339,3.24517,3081.5,3081.1,0.10132842]
[1732140096525,3.24517,3081.5,3080.9,3.24574]
[1732140096721,3.24517,3081.5,3081.0,0.10132584]
[1732140096923,3.24517,3081.5,3081.1,0.10132584]
[1732140097124,3.24517,3081.5,3080.9,3.24574]
[1732140097320,0.7606,3081.7,3081.0,0.10132652]
[1732140097633,0.7606,3081.7,3081.1,0.10132648]
[1732140097634,4.56640866,3081.7,3081.1,0.10132648]
[1732140097822,3.24581,3080.9,3080.4,0.7882]
[1732140098019,6.20202864,3080.9,3080.5,0.10133844]
[1732140098266,3.24581,3080.9,3080.6,0.10133844]
[1732140098566,3.24581,3080.9,3080.4,8.008829]
[1732140098863,3.24571,3081.0,3080.5,0.10134438]
[1732140099077,3.24586,3080.9,3080.6,0.10134438]
[1732140099225,3.24586,3080.9,3080.4,4.03446]
[1732140099425,3.24586,3080.9,3080.5,0.10134313]
[1732140099659,3.24586,3080.9,3080.4,4.762555]
[1732140099838,3.24586,3080.9,3080.6,0.10134332]
[1732140100039,3.24586,3080.9,3080.4,0.7882]
[1732140100239,3.24589,3080.9,3080.5,0.10134359]
[1732140100467,3.24589,3080.9,3080.6,0.10134359]
[1732140100694,0.55,3081.1,3080.4,0.7882]
[1732140100882,3.24619,3080.6,3080.5,0.10134669]
[1732140101051,3.24619,3080.6,3080.1,0.7981]
[1732140101400,3.24623,3080.5,3080.2,0.10135185]
[1732140101695,3.24623,3080.5,3080.3,0.10135185]
[1732140101909,3.24623,3080.5,3080.4,0.10135185]
[1732140102190,0.7958,3080.6,3080.2,0.10135185]
[1732140102501,3.24623,3080.5,3080.3,0.10135185]
[1732140102698,3.24623,3080.5,3080.4,0.10135185]
[1732140103390,4.04192,3080.6,3080.4,0.10135185]
[1732140103597,4.04192,3080.6,3080.1,4.04472]
[1732140103803,4.04192,3080.6,3080.2,0.10135444]
[1732140103955,4.04192,3080.6,3080.3,0.10135444]
[1732140104154,4.04192,3080.6,3080.4,0.10135444]
[1732140104493,4.04192,3080.6,3080.1,4.773869]
[1732140104986,4.04192,3080.6,3080.2,0.10135373]
[1732140105404,3.24623,3080.5,3080.3,0.10135373]
[1732140105563,6.49252,3080.5,3080.4,0.10135373]
[1732140105903,3.24623,3080.5,3080.4,0.10135373]
[1732140106601,3.24623,3080.5,3080.2,0.10135373]
[1732140106897,3.24633,3080.4,3080.3,0.10135373]
[1732140107694,3.24633,3080.4,3079.7,4.0715]
[1732140107695,3.24633,3080.4,3079.8,0.10135373]
[1732140107940,3.24648,3080.3,3079.7,4.0715]
[1732140108091,3.24648,3080.3,3079.9,0.10136463]
[1732140108297,3.24648,3080.3,3080.0,0.10136463]
[1732140108548,3.24648,3080.3,3080.1,0.10136463]
[1732140108838,3.24648,3080.3,3079.7,4.47864]
[1732140109019,3.24648,3080.3,3079.8,3.34830343]
[1732140109335,3.24648,3080.3,3079.9,0.10136343]
[1732140109630,3.24633,3080.4,3080.0,0.10136343]
[1732140109810,6.49273,3080.4,3080.1,0.10136343]
[1732140110140,3.24633,3080.4,3079.9,3.24679]
[1732140110340,3.24633,3080.4,3080.0,0.10136204]
[1732140110549,3.24644,3080.3,3080.1,0.10136204]
[1732140110759,3.24644,3080.3,3079.8,3.694799]
[1732140111040,3.24644,3080.3,3079.9,0.1013617]
[1732140111244,3.24644,3080.3,3079.8,3.694799]
[1732140111543,3.24644,3080.3,3079.9,0.10136311]
[1732140111743,3.24644,3080.3,3080.0,0.10136311]
[1732140111941,3.24644,3080.3,3080.1,0.10136347]